[Event "*** Titled Tuesday Blitz"]
[Site "Chess.com"]
[Date "2020.03.03"]
[Round "3"]
[White "Sergey85Rodchenkov"]
[Black "NMZanette"]
[Result "1-0"]
[WhiteElo "2560"]
[BlackElo "2261"]
[TimeControl "180+1"]
[EndTime "13:33:10 PST"]
[Termination "Sergey85Rodchenkov won by resignation"]

1. e4 {[%clk 0:03:00.9]} 1... e5 {[%clk 0:02:59.9]} 2. Nf3 {[%clk 0:03:00.5]}
2... Nc6 {[%clk 0:02:59.8]} 3. Bc4 {[%clk 0:03:00.4]} 3... Nf6 {[%clk
0:02:59.5]} 4. d3 {[%clk 0:03:00.1]} 4... Be7 {[%clk 0:02:59.5]} 5. O-O {[%clk
0:02:59.5]} 5... O-O {[%clk 0:02:59.7]} 6. Re1 {[%clk 0:03:00]} 6... d6 {[%clk
0:02:59.3]} 7. c3 {[%clk 0:02:59.6]} 7... Na5 {[%clk 0:02:57.5]} 8. Bb5 {[%clk
0:02:59.4]} 8... a6 {[%clk 0:02:58.1]} 9. Ba4 {[%clk 0:02:59.3]} 9... b5 {[%clk
0:02:58.7]} 10. Bc2 {[%clk 0:02:59.9]} 10... c5 {[%clk 0:02:59.2]} 11. Nbd2
{[%clk 0:02:59.9]} 11... Nc6 {[%clk 0:02:56.8]} 12. Nf1 {[%clk 0:03:00.1]} 12...
Re8 {[%clk 0:02:53]} 13. Ng3 {[%clk 0:02:59.4]} 13... Bf8 {[%clk 0:02:53.6]} 14.
Nh4 {[%clk 0:02:47.2]} 14... g6 {[%clk 0:02:49.3]} 15. Nf3 {[%clk 0:02:41.2]}
15... Bg7 {[%clk 0:02:46.4]} 16. a4 {[%clk 0:02:35.8]} 16... Rb8 {[%clk
0:02:37.8]} 17. axb5 {[%clk 0:02:33]} 17... axb5 {[%clk 0:02:38.2]} 18. Bb3
{[%clk 0:02:27]} 18... Be6 {[%clk 0:02:36.4]} 19. Bxe6 {[%clk 0:02:23.6]} 19...
Rxe6 {[%clk 0:02:31.9]} 20. Be3 {[%clk 0:02:16.3]} 20... Re8 {[%clk 0:02:20.3]}
21. Qb3 {[%clk 0:02:07.6]} 21... Qc7 {[%clk 0:02:15]} 22. Ra6 {[%clk 0:01:59]}
22... Rb6 {[%clk 0:02:12.6]} 23. Rea1 {[%clk 0:01:54.2]} 23... Qb7 {[%clk
0:02:08.1]} 24. R6a2 {[%clk 0:01:41.5]} 24... Qc7 {[%clk 0:01:59.8]} 25. h3
{[%clk 0:01:40.4]} 25... Rb7 {[%clk 0:01:54.5]} 26. Ra6 {[%clk 0:01:38.5]} 26...
Rb6 {[%clk 0:01:53.2]} 27. Ng5 {[%clk 0:01:38.3]} 27... Rf8 {[%clk 0:01:43.1]}
28. Ra8 {[%clk 0:01:29.3]} 28... Rbb8 {[%clk 0:01:40.1]} 29. Rxb8 {[%clk
0:01:23.6]} 29... Qxb8 {[%clk 0:01:40.1]} 30. Ra6 {[%clk 0:01:21.2]} 30... Qb7
{[%clk 0:01:40]} 31. Qa2 {[%clk 0:01:16.8]} 31... h6 {[%clk 0:01:36.4]} 32. Nf3
{[%clk 0:01:15.8]} 32... Nd7 {[%clk 0:01:22.9]} 33. Ne2 {[%clk 0:01:11.5]} 33...
b4 {[%clk 0:01:20.9]} 34. Nd2 {[%clk 0:01:04.2]} 34... bxc3 {[%clk 0:01:19.6]}
35. bxc3 {[%clk 0:01:03.9]} 35... Rb8 {[%clk 0:01:13.2]} 36. Nc4 {[%clk
0:00:59.3]} 36... Bf8 {[%clk 0:01:11.3]} 37. g3 {[%clk 0:00:54.4]} 37... Nf6
{[%clk 0:01:02.5]} 38. Qa4 {[%clk 0:00:49.4]} 38... Nd8 {[%clk 0:00:47.5]} 39.
Kh2 {[%clk 0:00:42.3]} 39... Qc7 {[%clk 0:00:40]} 40. Ra7 {[%clk 0:00:34.1]}
40... Qc6 {[%clk 0:00:38.1]} 41. Qxc6 {[%clk 0:00:29.8]} 41... Nxc6 {[%clk
0:00:38.5]} 42. Ra6 {[%clk 0:00:30.3]} 42... Rc8 {[%clk 0:00:38.1]} 43. f4
{[%clk 0:00:28.3]} 43... Ne8 {[%clk 0:00:36.5]} 44. fxe5 {[%clk 0:00:26.9]}
44... Nxe5 {[%clk 0:00:37.1]} 45. Nxe5 {[%clk 0:00:26.7]} 45... dxe5 {[%clk
0:00:37.7]} 46. c4 {[%clk 0:00:26.4]} 46... Rd8 {[%clk 0:00:37.7]} 47. Ra3
{[%clk 0:00:25.1]} 47... Nf6 {[%clk 0:00:36.9]} 48. Kg2 {[%clk 0:00:24.5]} 48...
Nd7 {[%clk 0:00:36.6]} 49. Kf3 {[%clk 0:00:23.7]} 49... Nb8 {[%clk 0:00:37.2]}
50. Nc1 {[%clk 0:00:20.3]} 50... Nc6 {[%clk 0:00:37.7]} 51. Ke2 {[%clk
0:00:20.6]} 51... Nb4 {[%clk 0:00:38.2]} 52. Rb3 {[%clk 0:00:19.1]} 52... f5
{[%clk 0:00:38.4]} 53. Bd2 {[%clk 0:00:18.6]} 53... fxe4 {[%clk 0:00:38.5]} 54.
dxe4 {[%clk 0:00:18.9]} 54... Nc6 {[%clk 0:00:38.8]} 55. Bc3 {[%clk 0:00:18.7]}
55... Ra8 {[%clk 0:00:38]} 56. Nd3 {[%clk 0:00:18.5]} 56... Nd4+ {[%clk
0:00:37]} 57. Bxd4 {[%clk 0:00:18.3]} 57... cxd4 {[%clk 0:00:37.9]} 58. Nxe5
{[%clk 0:00:17.7]} 58... Ra2+ {[%clk 0:00:38.8]} 59. Kf3 {[%clk 0:00:17.6]}
59... Bd6 {[%clk 0:00:39.2]} 60. Nd3 {[%clk 0:00:17.4]} 60... Rd2 {[%clk
0:00:38.1]} 61. e5 {[%clk 0:00:17.4]} 61... Be7 {[%clk 0:00:38.6]} 62. Ke4
{[%clk 0:00:17.7]} 62... Kf7 {[%clk 0:00:39.1]} 63. Kxd4 {[%clk 0:00:17.7]}
63... Re2 {[%clk 0:00:38.7]} 64. Kd5 {[%clk 0:00:17.7]} 64... Rd2 {[%clk
0:00:38.1]} 65. c5 {[%clk 0:00:17.1]} 65... Bxc5 {[%clk 0:00:36.2]} 66. Kxc5
{[%clk 0:00:16.5]} 66... Ke6 {[%clk 0:00:36.2]} 67. Kd4 {[%clk 0:00:16.4]} 67...
Rc2 {[%clk 0:00:36]} 68. Nf4+ {[%clk 0:00:15.7]} 68... Kf5 {[%clk 0:00:36]} 69.
Rb6 {[%clk 0:00:15]} 69... h5 {[%clk 0:00:33.9]} 70. Rf6+ {[%clk 0:00:13.5]}
70... Kg5 {[%clk 0:00:33.9]} 71. Rxg6+ {[%clk 0:00:14]} 71... Kf5 {[%clk
0:00:34.2]} 72. h4 {[%clk 0:00:13.5]} 72... Rd2+ {[%clk 0:00:34.4]} 73. Nd3
{[%clk 0:00:13.6]} 73... Kxg6 {[%clk 0:00:33.9]} 74. Ke3 {[%clk 0:00:13.9]}
74... Rd1 {[%clk 0:00:33.9]} 75. Nf4+ {[%clk 0:00:14.1]} 75... Kh6 {[%clk
0:00:33.3]} 76. e6 {[%clk 0:00:14]} 76... Re1+ {[%clk 0:00:30.3]} 77. Kd4 {[%clk
0:00:14]} 77... Kg7 {[%clk 0:00:29.9]} 78. Kd5 {[%clk 0:00:13.7]} 78... Kf6
{[%clk 0:00:30]} 79. Kd6 {[%clk 0:00:13.4]} 79... Kf5 {[%clk 0:00:30.6]} 80. e7
{[%clk 0:00:12.9]} 80... Rd1+ {[%clk 0:00:30.8]} 81. Kc7 {[%clk 0:00:09.9]}
81... Re1 {[%clk 0:00:30.9]} 82. Kd8 {[%clk 0:00:09.9]} 82... Kg4 {[%clk
0:00:31.3]} 83. e8=Q {[%clk 0:00:09.6]} 83... Rxe8+ {[%clk 0:00:31.9]} 84. Kxe8
{[%clk 0:00:10.1]} 84... Kxg3 {[%clk 0:00:32.6]} 85. Ng6 {[%clk 0:00:10.2]}
85... Kg4 {[%clk 0:00:32.1]} 86. Kf7 {[%clk 0:00:10.7]} 86... Kf5 {[%clk
0:00:31.6]} 87. Kg7 {[%clk 0:00:11.2]} 87... Kg4 {[%clk 0:00:30.9]} 88. Kh6
{[%clk 0:00:11.6]} 88... Kf5 {[%clk 0:00:31.3]} 89. Kxh5 {[%clk 0:00:12]} 89...
Kf6 {[%clk 0:00:32.2]} 90. Kh6 {[%clk 0:00:11.6]} 90... Kf7 {[%clk 0:00:32.5]}
91. h5 {[%clk 0:00:11.7]} 91... Kg8 {[%clk 0:00:33.4]} 92. Kg5 {[%clk
0:00:11.6]} 92... Kh7 {[%clk 0:00:33.7]} 93. h6 {[%clk 0:00:11.1]} 93... Kg8
{[%clk 0:00:34.3]} 94. Kh5 {[%clk 0:00:10.3]} 94... Kh7 {[%clk 0:00:35.2]} 95.
Nh4 {[%clk 0:00:10.4]} 95... Kg8 {[%clk 0:00:36]} 96. Kg6 {[%clk 0:00:10.4]}
96... Kh8 {[%clk 0:00:36.2]} 97. Nf5 {[%clk 0:00:10.4]} 97... Kg8 {[%clk
0:00:36.4]} 98. Nd6 {[%clk 0:00:11]} 98... Kh8 {[%clk 0:00:37.3]} 99. Nf7+
{[%clk 0:00:11.2]} 99... Kg8 {[%clk 0:00:38.2]} 100. h7+ {[%clk 0:00:11.7]}
100... Kf8 {[%clk 0:00:39.1]} 101. h8=Q+ {[%clk 0:00:12.3]} 101... Ke7 {[%clk
0:00:40]} 102. Qe5+ {[%clk 0:00:12.7]} 102... Kf8 {[%clk 0:00:39.7]} 103. Qg7+
{[%clk 0:00:12.7]} 103... Ke7 {[%clk 0:00:39.9]} 104. Ng5+ {[%clk 0:00:12.8]}
104... Kd6 {[%clk 0:00:40]} 105. Qf6+ {[%clk 0:00:13.2]} 105... Kd5 {[%clk
0:00:40]} 106. Qe6+ {[%clk 0:00:13.6]} 106... Kd4 {[%clk 0:00:39.4]} 107. Qe4+
{[%clk 0:00:14.5]} 107... Kc3 {[%clk 0:00:40.1]} 108. Nf3 {[%clk 0:00:14.8]}
108... Kb3 {[%clk 0:00:39.9]} 109. Qd3+ {[%clk 0:00:14.7]} 109... Kb4 {[%clk
0:00:39.9]} 110. Nd2 {[%clk 0:00:15]} 1-0

[Event "*** Titled Tuesday Blitz"]
[Site "Chess.com"]
[Date "2020.03.03"]
[Round "4"]
[White "SloLev"]
[Black "enzovsky"]
[Result "1-0"]
[WhiteElo "2525"]
[BlackElo "2326"]
[TimeControl "180+1"]
[EndTime "13:37:01 PST"]
[Termination "SloLev won by resignation"]

1. e4 {[%clk 0:03:00.9]} 1... c5 {[%clk 0:02:59.5]} 2. c3 {[%clk 0:02:58.4]}
2... Nf6 {[%clk 0:02:57.5]} 3. e5 {[%clk 0:02:57.7]} 3... Nd5 {[%clk 0:02:57.6]}
4. g3 {[%clk 0:02:58.6]} 4... e6 {[%clk 0:02:49.1]} 5. Bg2 {[%clk 0:02:58.4]}
5... d6 {[%clk 0:02:49.1]} 6. exd6 {[%clk 0:02:58]} 6... Qxd6 {[%clk 0:02:45]}
7. Nf3 {[%clk 0:02:58.9]} 7... Be7 {[%clk 0:02:44.9]} 8. O-O {[%clk 0:02:59.5]}
8... O-O {[%clk 0:02:44.8]} 9. Na3 {[%clk 0:03:00.1]} 9... Nc6 {[%clk
0:02:40.5]} 10. d4 {[%clk 0:02:59.6]} 10... cxd4 {[%clk 0:02:32.8]} 11. Nb5
{[%clk 0:02:59.8]} 11... Qd7 {[%clk 0:02:29.8]} 12. Nbxd4 {[%clk 0:03:00.7]}
12... Nxd4 {[%clk 0:02:26.9]} 13. Nxd4 {[%clk 0:03:01.6]} 13... Rd8 {[%clk
0:02:23.9]} 14. Qe2 {[%clk 0:03:02]} 14... Qc7 {[%clk 0:02:19.2]} 15. Rd1 {[%clk
0:03:01.4]} 15... Bd7 {[%clk 0:02:18.4]} 16. c4 {[%clk 0:02:54.3]} 16... Nb6
{[%clk 0:02:05.6]} 17. b3 {[%clk 0:02:53.7]} 17... Bc6 {[%clk 0:02:00.8]} 18.
Bf4 {[%clk 0:02:46.9]} 18... Bd6 {[%clk 0:01:46.9]} 19. Bxd6 {[%clk 0:02:36.7]}
19... Rxd6 {[%clk 0:01:45.3]} 20. Nxc6 {[%clk 0:02:35]} 20... bxc6 {[%clk
0:01:39.6]} 21. Rxd6 {[%clk 0:02:33]} 21... Qxd6 {[%clk 0:01:40.5]} 22. Rd1
{[%clk 0:02:33.4]} 22... Qc5 {[%clk 0:01:39.5]} 23. Qe4 {[%clk 0:02:33.2]} 23...
g6 {[%clk 0:01:21.8]} 24. Qxc6 {[%clk 0:02:33]} 24... Qa3 {[%clk 0:01:21.8]} 25.
Qd6 {[%clk 0:02:24.1]} 25... Qxa2 {[%clk 0:01:19.2]} 26. Bxa8 {[%clk 0:02:23]}
1-0

[Event "*** Titled Tuesday Blitz"]
[Site "Chess.com"]
[Date "2020.03.03"]
[Round "4"]
[White "RaphCamora"]
[Black "Aleksandr_Kozak"]
[Result "0-1"]
[WhiteElo "2430"]
[BlackElo "2245"]
[TimeControl "180+1"]
[EndTime "13:37:05 PST"]
[Termination "Aleksandr_Kozak won by resignation"]

1. e4 {[%clk 0:03:00.9]} 1... e5 {[%clk 0:02:59.1]} 2. Nf3 {[%clk 0:03:00]} 2...
Nc6 {[%clk 0:02:58.9]} 3. Bc4 {[%clk 0:03:00.5]} 3... Nf6 {[%clk 0:02:57.7]} 4.
d3 {[%clk 0:03:00.2]} 4... Bc5 {[%clk 0:02:55.6]} 5. O-O {[%clk 0:02:59.7]} 5...
d6 {[%clk 0:02:54.6]} 6. c3 {[%clk 0:02:59.3]} 6... Bb6 {[%clk 0:02:53.4]} 7. a4
{[%clk 0:02:58.7]} 7... a6 {[%clk 0:02:50.1]} 8. Re1 {[%clk 0:02:56.1]} 8... h6
{[%clk 0:02:47.1]} 9. Nbd2 {[%clk 0:02:56]} 9... g5 {[%clk 0:02:45.7]} 10. b4
{[%clk 0:02:53.8]} 10... Nh5 {[%clk 0:02:43.6]} 11. a5 {[%clk 0:02:43.2]} 11...
Ba7 {[%clk 0:02:35.9]} 12. g3 {[%clk 0:02:43]} 12... Qf6 {[%clk 0:02:29.5]} 13.
Qe2 {[%clk 0:02:17]} 13... g4 {[%clk 0:02:25.6]} 14. Nh4 {[%clk 0:02:05.5]}
14... Nf4 {[%clk 0:02:24.8]} 15. gxf4 {[%clk 0:02:05.6]} 15... Qxh4 {[%clk
0:02:22.4]} 16. f5 {[%clk 0:02:05.5]} 16... g3 {[%clk 0:02:12.2]} 17. Kg2 {[%clk
0:01:20.4]} 17... Qxh2+ {[%clk 0:02:04.6]} 18. Kf3 {[%clk 0:01:20.3]} 18... gxf2
{[%clk 0:01:54.2]} 0-1

[Event "*** Titled Tuesday Blitz"]
[Site "Chess.com"]
[Date "2020.03.03"]
[Round "4"]
[White "riconaipe"]
[Black "shanemelaughcm"]
[Result "1-0"]
[WhiteElo "2553"]
[BlackElo "2281"]
[TimeControl "180+1"]
[EndTime "13:37:13 PST"]
[Termination "riconaipe won by resignation"]

1. e4 {[%clk 0:02:39.6]} 1... c5 {[%clk 0:02:58.2]} 2. Nf3 {[%clk 0:02:39.2]}
2... Nc6 {[%clk 0:02:58.5]} 3. Bb5 {[%clk 0:02:39.5]} 3... g6 {[%clk 0:02:58.6]}
4. Bxc6 {[%clk 0:02:38.9]} 4... dxc6 {[%clk 0:02:58.7]} 5. O-O {[%clk
0:02:39.8]} 5... Bg7 {[%clk 0:02:59]} 6. d3 {[%clk 0:02:39.1]} 6... e5 {[%clk
0:02:59.3]} 7. a4 {[%clk 0:02:38]} 7... b6 {[%clk 0:02:50.7]} 8. Na3 {[%clk
0:02:31.4]} 8... Nh6 {[%clk 0:02:44]} 9. Nc4 {[%clk 0:02:22.6]} 9... f6 {[%clk
0:02:42.5]} 10. c3 {[%clk 0:02:18.4]} 10... O-O {[%clk 0:02:39.5]} 11. d4 {[%clk
0:02:18.7]} 11... cxd4 {[%clk 0:02:39.2]} 12. cxd4 {[%clk 0:02:19.6]} 12... Bg4
{[%clk 0:02:27.4]} 13. dxe5 {[%clk 0:02:18.1]} 13... Qxd1 {[%clk 0:02:27.4]} 14.
Rxd1 {[%clk 0:02:17.6]} 14... fxe5 {[%clk 0:02:15.7]} 15. Bxh6 {[%clk 0:02:11]}
15... Bxh6 {[%clk 0:02:16]} 16. Ncxe5 {[%clk 0:02:09.6]} 16... Bg7 {[%clk
0:02:14.4]} 17. Nxg4 {[%clk 0:02:07.7]} 17... Bxb2 {[%clk 0:02:07.9]} 18. Rab1
{[%clk 0:02:07.1]} 18... Bg7 {[%clk 0:02:07.9]} 19. Rd7 {[%clk 0:02:05.8]} 19...
Rfe8 {[%clk 0:02:04.9]} 20. e5 {[%clk 0:02:05.5]} 20... c5 {[%clk 0:02:05.2]}
21. Nf6+ {[%clk 0:02:05.4]} 21... Bxf6 {[%clk 0:02:05.4]} 22. exf6 {[%clk
0:02:06.3]} 22... Rf8 {[%clk 0:02:06]} 23. Rd6 {[%clk 0:02:03.7]} 23... Rad8
{[%clk 0:02:05.2]} 24. Rbd1 {[%clk 0:02:03.1]} 24... Rxd6 {[%clk 0:02:03.9]} 25.
Rxd6 {[%clk 0:02:04]} 25... Re8 {[%clk 0:02:04.7]} 26. g4 {[%clk 0:02:03.1]}
26... Re4 {[%clk 0:02:05]} 27. g5 {[%clk 0:02:00.5]} 27... Rxa4 {[%clk
0:02:05.3]} 28. Ne5 {[%clk 0:01:58.7]} 28... h6 {[%clk 0:01:59.4]} 29. f7+
{[%clk 0:01:49.3]} 1-0

[Event "*** Titled Tuesday Blitz"]
[Site "Chess.com"]
[Date "2020.03.03"]
[Round "4"]
[White "DenishevM"]
[Black "diskeleven"]
[Result "1-0"]
[WhiteElo "2600"]
[BlackElo "2366"]
[TimeControl "180+1"]
[EndTime "13:37:36 PST"]
[Termination "DenishevM won by resignation"]

1. d4 {[%clk 0:03:00.6]} 1... f5 {[%clk 0:02:59.2]} 2. g3 {[%clk 0:02:53.5]}
2... Nf6 {[%clk 0:02:58.5]} 3. Bg2 {[%clk 0:02:54.2]} 3... e6 {[%clk 0:02:59]}
4. c4 {[%clk 0:02:54.7]} 4... d5 {[%clk 0:02:57.4]} 5. Nf3 {[%clk 0:02:54.3]}
5... c6 {[%clk 0:02:57.5]} 6. O-O {[%clk 0:02:53.9]} 6... Bd6 {[%clk 0:02:57.3]}
7. Nbd2 {[%clk 0:02:54]} 7... Nbd7 {[%clk 0:02:53.1]} 8. b3 {[%clk 0:02:54.1]}
8... b6 {[%clk 0:02:48.3]} 9. Bb2 {[%clk 0:02:53.4]} 9... Bb7 {[%clk 0:02:48.4]}
10. Rc1 {[%clk 0:02:54.1]} 10... O-O {[%clk 0:02:45.9]} 11. Qc2 {[%clk
0:02:53.5]} 11... Qe7 {[%clk 0:02:41.9]} 12. Ne5 {[%clk 0:02:49.9]} 12... Rfc8
{[%clk 0:02:35.6]} 13. Ndf3 {[%clk 0:02:48.6]} 13... a5 {[%clk 0:02:31.9]} 14.
a4 {[%clk 0:02:41.4]} 14... Nb8 {[%clk 0:02:26.4]} 15. cxd5 {[%clk 0:02:16]}
15... cxd5 {[%clk 0:02:10.4]} 16. Qxc8+ {[%clk 0:02:16.9]} 16... Bxc8 {[%clk
0:02:10.4]} 17. Rxc8+ {[%clk 0:02:17.8]} 17... Ne8 {[%clk 0:02:09.2]} 18. Rfc1
{[%clk 0:02:16]} 18... Ra7 {[%clk 0:02:03.1]} 19. e3 {[%clk 0:02:02]} 19... Rc7
{[%clk 0:02:01.1]} 20. R1xc7 {[%clk 0:01:35.6]} 20... Bxc7 {[%clk 0:01:55.3]}
21. Ba3 {[%clk 0:01:29.4]} 1-0

[Event "*** Titled Tuesday Blitz"]
[Site "Chess.com"]
[Date "2020.03.03"]
[Round "4"]
[White "SHIVACalypso"]
[Black "Babas"]
[Result "0-1"]
[WhiteElo "2174"]
[BlackElo "2356"]
[TimeControl "180+1"]
[EndTime "13:37:40 PST"]
[Termination "Babas won by resignation"]

1. Nf3 {[%clk 0:03:00.9]} 1... d5 {[%clk 0:02:58.6]} 2. c4 {[%clk 0:03:00.4]}
2... c6 {[%clk 0:02:58.5]} 3. d4 {[%clk 0:02:59.5]} 3... Nf6 {[%clk 0:02:58.3]}
4. g3 {[%clk 0:02:57.8]} 4... e6 {[%clk 0:02:50.5]} 5. Bg2 {[%clk 0:02:57.3]}
5... Nbd7 {[%clk 0:02:50.2]} 6. O-O {[%clk 0:02:57.2]} 6... Bd6 {[%clk
0:02:45.4]} 7. Nc3 {[%clk 0:02:57.2]} 7... O-O {[%clk 0:02:43.7]} 8. Nd2 {[%clk
0:02:56.6]} 8... Re8 {[%clk 0:02:36.6]} 9. e4 {[%clk 0:02:51.8]} 9... e5 {[%clk
0:02:36.1]} 10. dxe5 {[%clk 0:02:48.5]} 10... Nxe5 {[%clk 0:02:36.1]} 11. exd5
{[%clk 0:02:40]} 11... Bg4 {[%clk 0:02:30.2]} 12. Qb3 {[%clk 0:02:29.6]} 12...
Qc7 {[%clk 0:02:01.7]} 13. dxc6 {[%clk 0:02:09.1]} 13... bxc6 {[%clk 0:01:58]}
14. h3 {[%clk 0:02:04.9]} 14... Be6 {[%clk 0:01:43.4]} 15. Qa4 {[%clk
0:01:47.2]} 15... Rab8 {[%clk 0:01:35.5]} 16. f4 {[%clk 0:01:28.9]} 16... Rb4
{[%clk 0:01:35]} 17. fxe5 {[%clk 0:01:15.2]} 17... Bc5+ {[%clk 0:01:33.4]} 0-1

[Event "*** Titled Tuesday Blitz"]
[Site "Chess.com"]
[Date "2020.03.03"]
[Round "4"]
[White "isla88"]
[Black "elisak43"]
[Result "0-1"]
[WhiteElo "2317"]
[BlackElo "2520"]
[TimeControl "180+1"]
[EndTime "13:38:01 PST"]
[Termination "elisak43 won by resignation"]

1. c4 {[%clk 0:02:40]} 1... g6 {[%clk 0:02:59]} 2. Nc3 {[%clk 0:02:40.3]} 2...
Bg7 {[%clk 0:02:59.6]} 3. d4 {[%clk 0:02:38.2]} 3... Nf6 {[%clk 0:02:59.8]} 4.
e4 {[%clk 0:02:37.5]} 4... O-O {[%clk 0:03:00.7]} 5. h3 {[%clk 0:02:37.4]} 5...
d6 {[%clk 0:02:57.8]} 6. Be3 {[%clk 0:02:37.6]} 6... Nbd7 {[%clk 0:02:53.9]} 7.
g4 {[%clk 0:02:31.9]} 7... c5 {[%clk 0:02:53.6]} 8. d5 {[%clk 0:02:30.9]} 8...
b5 {[%clk 0:02:51.6]} 9. cxb5 {[%clk 0:02:23.3]} 9... Qa5 {[%clk 0:02:49.8]} 10.
Qd2 {[%clk 0:02:17.4]} 10... a6 {[%clk 0:02:49]} 11. bxa6 {[%clk 0:02:02.9]}
11... Bxa6 {[%clk 0:02:48.9]} 12. Bxa6 {[%clk 0:02:03.2]} 12... Qxa6 {[%clk
0:02:49.8]} 13. Nge2 {[%clk 0:01:37.6]} 13... Ne5 {[%clk 0:02:49.8]} 14. Kf1
{[%clk 0:01:25.2]} 14... Rfb8 {[%clk 0:02:42.1]} 15. Kg2 {[%clk 0:01:23.9]}
15... Nc4 {[%clk 0:02:42]} 16. Qd3 {[%clk 0:01:17]} 16... Nxe3+ {[%clk
0:02:26.8]} 17. Qxe3 {[%clk 0:01:16]} 17... Rxb2 {[%clk 0:02:27.7]} 18. Rab1
{[%clk 0:01:03.4]} 18... Rab8 {[%clk 0:02:20.8]} 19. Rxb2 {[%clk 0:00:48.3]}
19... Rxb2 {[%clk 0:02:21.7]} 20. a4 {[%clk 0:00:44.8]} 20... Nd7 {[%clk
0:02:19.6]} 21. Ra1 {[%clk 0:00:30.6]} 21... Rxe2 {[%clk 0:02:15.5]} 0-1

[Event "*** Titled Tuesday Blitz"]
[Site "Chess.com"]
[Date "2020.03.03"]
[Round "4"]
[White "black_pawn_16"]
[Black "ChesterF"]
[Result "1-0"]
[WhiteElo "2194"]
[BlackElo "2418"]
[TimeControl "180+1"]
[EndTime "13:38:34 PST"]
[Termination "black_pawn_16 won by resignation"]

1. e4 {[%clk 0:03:00.9]} 1... c5 {[%clk 0:02:59.5]} 2. Nc3 {[%clk 0:03:00]} 2...
a6 {[%clk 0:02:57.2]} 3. f4 {[%clk 0:02:55]} 3... b5 {[%clk 0:02:57.2]} 4. g3
{[%clk 0:02:54.3]} 4... Bb7 {[%clk 0:02:57.4]} 5. Bg2 {[%clk 0:02:53.4]} 5... e6
{[%clk 0:02:58]} 6. d3 {[%clk 0:02:45.3]} 6... Nf6 {[%clk 0:02:58.4]} 7. Nh3
{[%clk 0:02:40.2]} 7... b4 {[%clk 0:02:58.6]} 8. Ne2 {[%clk 0:02:36.8]} 8... d5
{[%clk 0:02:59.2]} 9. e5 {[%clk 0:02:32.7]} 9... Nfd7 {[%clk 0:02:59.3]} 10. O-O
{[%clk 0:02:29.4]} 10... Be7 {[%clk 0:02:59.7]} 11. c3 {[%clk 0:02:25.9]} 11...
Nc6 {[%clk 0:02:57.2]} 12. d4 {[%clk 0:02:22]} 12... Qb6 {[%clk 0:02:51.3]} 13.
Kh1 {[%clk 0:02:17.9]} 13... a5 {[%clk 0:02:51.6]} 14. f5 {[%clk 0:02:13.8]}
14... Ba6 {[%clk 0:02:45.1]} 15. Nhf4 {[%clk 0:02:09.6]} 15... Nd8 {[%clk
0:02:37.7]} 16. fxe6 {[%clk 0:02:06]} 16... fxe6 {[%clk 0:02:37.2]} 17. Nh5
{[%clk 0:02:04.1]} 17... Bf8 {[%clk 0:02:27.1]} 18. Rf2 {[%clk 0:01:58.6]} 18...
g6 {[%clk 0:02:20.2]} 19. Bg5 {[%clk 0:01:54.1]} 19... gxh5 {[%clk 0:02:12.6]}
20. Nf4 {[%clk 0:01:51.3]} 20... Nf7 {[%clk 0:01:36.4]} 21. Qxh5 {[%clk
0:01:47.7]} 21... Be7 {[%clk 0:01:28.1]} 22. Nxd5 {[%clk 0:01:44]} 22... exd5
{[%clk 0:01:26.3]} 23. Qxf7+ {[%clk 0:01:41.1]} 23... Kd8 {[%clk 0:01:26.6]} 24.
Qxe7+ {[%clk 0:01:38.8]} 24... Kc8 {[%clk 0:01:27]} 25. e6 {[%clk 0:01:35.7]}
25... Nb8 {[%clk 0:01:18.4]} 26. Bxd5 {[%clk 0:01:31.7]} 26... Ra7 {[%clk
0:01:13.1]} 27. Rf8+ {[%clk 0:01:28.6]} 1-0

[Event "*** Titled Tuesday Blitz"]
[Site "Chess.com"]
[Date "2020.03.03"]
[Round "4"]
[White "MiroVlasenko"]
[Black "ChelsieMonica"]
[Result "1/2-1/2"]
[WhiteElo "2637"]
[BlackElo "2174"]
[TimeControl "180+1"]
[EndTime "13:38:49 PST"]
[Termination "Game drawn by repetition"]

1. e4 {[%clk 0:03:00.9]} 1... e5 {[%clk 0:02:59.7]} 2. Nc3 {[%clk 0:03:00.1]}
2... Nf6 {[%clk 0:02:58.4]} 3. Bc4 {[%clk 0:02:59.5]} 3... c6 {[%clk 0:02:56.7]}
4. d3 {[%clk 0:02:58.1]} 4... d5 {[%clk 0:02:56.4]} 5. exd5 {[%clk 0:02:53.2]}
5... cxd5 {[%clk 0:02:56.5]} 6. Bb3 {[%clk 0:02:53.6]} 6... Nc6 {[%clk
0:02:56.6]} 7. Nf3 {[%clk 0:02:52.8]} 7... Bd6 {[%clk 0:02:55.3]} 8. O-O {[%clk
0:02:51.1]} 8... d4 {[%clk 0:02:51.4]} 9. Nb5 {[%clk 0:02:44.9]} 9... Bb8 {[%clk
0:02:51.2]} 10. Re1 {[%clk 0:02:41]} 10... O-O {[%clk 0:02:49.6]} 11. Bg5 {[%clk
0:02:38.9]} 11... h6 {[%clk 0:02:44.5]} 12. Bh4 {[%clk 0:02:38.2]} 12... a6
{[%clk 0:02:39.7]} 13. Na3 {[%clk 0:02:34.5]} 13... b5 {[%clk 0:02:35.9]} 14. c3
{[%clk 0:02:34.5]} 14... Bg4 {[%clk 0:02:34.7]} 15. Nc2 {[%clk 0:02:29.4]} 15...
Re8 {[%clk 0:02:27.5]} 16. cxd4 {[%clk 0:02:24.1]} 16... g5 {[%clk 0:02:18.2]}
17. Bg3 {[%clk 0:02:20.4]} 17... exd4 {[%clk 0:02:18.3]} 18. Rxe8+ {[%clk
0:02:09.4]} 18... Qxe8 {[%clk 0:02:15.2]} 19. Qe1 {[%clk 0:02:03.3]} 19... Bxg3
{[%clk 0:02:13.1]} 20. hxg3 {[%clk 0:02:03.1]} 20... Bxf3 {[%clk 0:02:12.5]} 21.
gxf3 {[%clk 0:02:02.6]} 21... Ne5 {[%clk 0:02:10.5]} 22. Kg2 {[%clk 0:01:46.1]}
22... Nxd3 {[%clk 0:02:04.5]} 23. Qd2 {[%clk 0:01:43.9]} 23... Nc5 {[%clk
0:02:03.7]} 24. Qxd4 {[%clk 0:01:37.2]} 24... Nxb3 {[%clk 0:02:03.5]} 25. axb3
{[%clk 0:01:37.2]} 25... Qc6 {[%clk 0:02:02.6]} 26. Ne3 {[%clk 0:01:34.4]} 26...
Re8 {[%clk 0:01:58.1]} 27. Nf5 {[%clk 0:01:32]} 27... Kh7 {[%clk 0:01:41.2]} 28.
Rh1 {[%clk 0:01:30.4]} 28... h5 {[%clk 0:01:38.1]} 29. g4 {[%clk 0:01:19.9]}
29... h4 {[%clk 0:01:34.8]} 30. Rc1 {[%clk 0:01:15.6]} 30... Qe6 {[%clk
0:01:30.5]} 31. Re1 {[%clk 0:01:08.4]} 31... Qxe1 {[%clk 0:01:18.3]} 32. Qxf6
{[%clk 0:01:07.6]} 32... h3+ {[%clk 0:01:18.5]} 33. Kxh3 {[%clk 0:01:07.2]}
33... Qh1+ {[%clk 0:01:15]} 34. Kg3 {[%clk 0:01:07.3]} 34... Qg1+ {[%clk
0:01:06.3]} 35. Kh3 {[%clk 0:01:07.4]} 35... Qh1+ {[%clk 0:01:06.5]} 36. Kg3
{[%clk 0:01:07.5]} 36... Qg1+ {[%clk 0:01:06.8]} 37. Kh3 {[%clk 0:01:07.7]}
37... Qh1+ {[%clk 0:01:07.1]} 1/2-1/2